bitfinex/quotes_ETHUSD_20260227
["timestamp","ask_amount","ask_price","bid_price","bid_amount"]
[1772180158250,1.28826126,2040.1,2039.7,1.22665632]
[1772180158651,1.28826126,2040.1,2039.7,0.001]
[1772180158951,0.002,2040.2,2039.7,0.001]
[1772180159153,0.002,2040.2,2039.7,3.37107278]
[1772180160996,0.0004,2040.4,2040.0,3.57519019]
[1772180161284,0.002,2040.8,2040.3,3.37007278]
[1772180161448,0.002,2040.8,2040.7,3.37007278]
[1772180162264,1.29026126,2041.3,2040.7,3.37007278]
[1772180162580,1.29026126,2041.3,2040.3,3.37007278]
[1772180162581,1.28826126,2040.9,2040.3,3.37007278]
[1772180163178,1.28826126,2040.9,2040.4,1.22524995]
[1772180164748,0.002,2041.0,2040.6,3.37007278]
[1772180164949,0.002,2041.0,2040.6,3.56977252]
[1772180165178,0.002,2041.0,2040.7,1.22506982]
[1772180166254,1.29026126,2041.0,2040.6,4.59516064]
[1772180166455,0.002,2040.8,2040.3,8.27128956]
[1772180168158,0.0004,2040.8,2040.3,8.27048956]
[1772180168481,0.0004,2040.8,2040.6,3.37007278]
[1772180170161,0.0004,2040.8,2040.7,1.22506982]
[1772180170362,0.0004,2040.8,2040.6,4.59515553]
[1772180173584,0.0004,2040.8,2040.5,1.22514741]
[1772180173993,0.0004,2040.8,2040.6,3.37007278]
[1772180174297,0.0004,2040.8,2040.7,1.22506982]
[1772180174499,0.002,2041.3,2040.7,1.41451349]
[1772180174713,0.002,2041.3,2041.1,3.37007278]
[1772180176392,0.002,2041.3,2041.2,1.22476974]
[1772180176766,0.002,2041.5,2041.2,1.22476974]
[1772180177691,0.002,2041.8,2041.4,3.55516464]
[1772180177868,0.002,2041.8,2041.7,3.37007278]
[1772180178389,0.002,2041.8,2041.7,4.59454258]
[1772180178568,2.48861672,2042.3,2041.7,4.59454258]
[1772180178892,2.48861672,2042.3,2041.6,1.2244831]
[1772180178893,1.26447786,2042.2,2041.6,1.2244831]
[1772180179585,1.26447786,2042.4,2041.8,3.37007278]
[1772180180166,1.26447786,2042.4,2041.3,1.46]
[1772180180424,1.26447786,2042.4,2041.3,2.68467434]
[1772180180698,1.26447786,2042.2,2041.3,2.68467434]
[1772180181607,0.002,2041.6,2041.3,2.68467434]
[1772180182100,1.26647786,2041.6,2041.2,4.59483677]
[1772180182285,1.26647786,2041.6,2041.1,1.22479619]
[1772180182468,1.26447786,2041.5,2041.1,31.22482932]
[1772180182670,1.26447786,2041.5,2041.1,31.22482764]
[1772180182868,1.26447786,2041.5,2041.1,1.22482764]
[1772180183977,0.002,2041.6,2041.3,3.37007278]
[1772180184284,1.22652992,2041.6,2041.1,30.0]
[1772180184479,1.22652992,2041.6,2041.1,31.22480446]
[1772180184682,0.002,2041.6,2041.1,1.22480446]
[1772180186912,0.002,2041.6,2041.1,2.07536888]
[1772180187087,2.4888567,2041.9,2041.3,3.37007278]
[1772180187088,1.26447786,2041.9,2041.3,3.37007278]
[1772180187467,1.26447786,2041.9,2041.3,3.54459448]
[1772180187975,1.22417001,2042.2,2041.3,3.72217795]
[1772180188104,1.26447786,2042.1,2041.4,0.17372895]
[1772180188409,1.22417001,2042.2,2041.4,0.17372895]
[1772180188595,1.22417001,2042.2,2041.5,0.17372895]
[1772180189312,1.26447786,2042.1,2041.3,4.59474088]
[1772180189624,1.26447786,2042.1,2041.3,1.2246681]
[1772180190699,1.26447786,2042.1,2041.4,0.35377184]
[1772180190895,1.26447786,2042.1,2041.5,3.54223191]
[1772180191722,2.48873848,2042.1,2041.5,2.12477016]
[1772180192299,1.26447786,2042.0,2041.5,0.72804272]
[1772180192499,1.26447786,2042.0,2040.8,1.39357525]
[1772180192500,1.26447786,2041.9,2040.8,1.39357525]
[1772180192700,1.26447786,2041.8,2040.8,1.39358987]
[1772180193004,1.26447786,2041.8,2041.4,0.001]
[1772180193331,1.26447786,2041.8,2040.8,2.72557628]
[1772180193503,1.26447786,2041.6,2041.2,0.001]
[1772180195308,1.26447786,2041.6,2041.2,0.0001]
[1772180196028,1.26447786,2041.4,2041.2,0.0001]
[1772180196230,1.26447786,2041.4,2040.9,0.001]
[1772180198141,2.4891876,2041.3,2040.9,0.001]
[1772180200928,7.56335152,2041.9,2040.9,0.001]
[1772180201131,1.26763354,2041.7,2041.1,2.40180969]
[1772180201342,1.26763354,2041.7,2041.1,2.55239948]
[1772180202858,1.22452978,2041.6,2041.1,0.15058979]
[1772180203028,1.26763354,2041.5,2040.9,0.001]
[1772180204266,1.26763354,2041.5,2040.9,1.37198326]
[1772180204420,2.49214966,2041.7,2041.0,0.14605376]
[1772180204846,2.49214966,2041.7,2041.1,1.3708835]
[1772180204847,1.26763354,2041.7,2041.1,1.3708835]
[1772180205046,1.26763354,2041.7,2041.1,1.68223681]
[1772180205518,2.49398514,2041.9,2041.2,0.14457107]
[1772180205718,2.49398514,2041.9,2041.4,0.14457107]
[1772180205719,0.002,2041.9,2041.4,0.14457107]
[1772180206248,0.002,2041.9,2041.5,0.34943664]
[1772180206940,0.002,2041.9,2041.5,1.71562046]
[1772180208621,0.002,2041.9,2041.5,0.4910779]
[1772180208952,1.26963354,2041.9,2041.3,30.0]
[1772180209133,1.26963354,2041.9,2041.2,1.22472225]
[1772180209322,1.26963354,2041.9,2041.3,4.27064264]
[1772180209651,1.26963354,2041.9,2041.3,0.34943664]
[1772180210042,1.26963354,2041.9,2041.1,1.36459421]
[1772180210241,1.26963354,2041.9,2041.1,1.22578437]
[1772180210462,1.26963354,2041.9,2041.2,0.13741258]
[1772180210823,1.22440983,2041.8,2041.3,0.34943664]
[1772180211152,2.49204337,2041.8,2041.3,0.34943664]
[1772180211626,2.49204337,2041.8,2041.3,1.57414526]
[1772180213532,1.26763354,2041.8,2041.3,1.22470862]
[1772180214151,1.26763354,2041.8,2041.3,1.57414526]
[1772180214855,1.26763354,2041.8,2041.4,0.34943664]
[1772180215060,1.26763354,2041.7,2041.1,0.001]
[1772180215264,1.26763354,2041.7,2041.1,1.22582966]
[1772180215754,1.26763354,2041.6,2041.1,0.001]
[1772180217754,2.49218082,2041.6,2041.1,0.001]
[1772180218637,2.49218082,2041.6,2041.4,0.001]
[1772180219154,1.26763354,2041.5,2041.4,0.001]
[1772180219527,1.26763354,2041.5,2041.2,0.001]
[1772180219760,1.26763354,2041.3,2041.2,0.001]
[1772180221727,1.26763354,2041.5,2041.2,0.001]
[1772180222958,1.26763354,2041.5,2040.9,0.001]
[1772180224041,1.26763354,2041.3,2040.9,0.001]
[1772180224242,1.26763354,2041.2,2040.7,0.001]
[1772180224461,1.26763354,2041.2,2040.6,0.001]
[1772180227847,1.26763354,2041.0,2040.6,0.001]
[1772180228070,1.26763354,2041.5,2040.7,0.11689112]
[1772180228949,1.26763354,2041.5,2040.6,0.001]
[1772180231653,1.26763354,2041.5,2040.8,0.001]
[1772180231654,1.22475288,2041.3,2040.8,0.001]
[1772180231847,1.22675288,2041.3,2040.8,0.001]
[1772180234684,2.44952262,2041.2,2040.8,0.001]
[1772180235079,1.22475288,2041.2,2040.8,0.001]
[1772180235374,1.22672426,2041.3,2040.8,0.001]
[1772180235550,1.22672426,2041.3,2040.8,0.10936934]
[1772180235880,0.002,2041.3,2040.8,0.10936934]
[1772180236085,1.22671682,2041.3,2040.8,0.10936934]
[1772180236269,0.002,2041.3,2040.8,0.10936934]
[1772180236652,0.002,2041.3,2040.9,1.33231291]
[1772180237162,0.002,2041.3,2040.8,0.001]
[1772180237163,1.22675288,2041.3,2040.8,0.001]
[1772180237663,1.22675288,2041.3,2040.8,1.33236471]
[1772180237867,1.22675288,2041.3,2040.9,0.10636059]
[1772180237868,0.002,2041.3,2040.9,0.10636059]
[1772180238760,0.002,2041.3,2041.0,1.22488975]
[1772180239780,0.002,2041.3,2041.0,1.32927665]
[1772180240650,0.002,2041.3,2041.1,0.10341588]
[1772180240847,1.22675288,2041.7,2041.2,1.22476974]
[1772180241053,0.002,2041.7,2041.3,0.10245639]
[1772180241247,1.22675288,2041.7,2041.2,1.22476974]
[1772180241858,1.22675288,2041.7,2041.1,3.96426608]
[1772180242061,1.22475288,2041.6,2040.8,1.22598807]
[1772180242376,1.22475288,2041.6,2040.9,0.10151023]
[1772180242776,2.44934155,2041.6,2041.0,1.22488975]
[1772180242987,1.22475288,2041.5,2041.0,1.22488975]
[1772180243154,1.22475288,2041.5,2040.9,1.32547852]
[1772180243771,1.22475288,2041.5,2041.0,0.10057449]
[1772180243970,1.22675288,2041.7,2041.0,0.10057449]
[1772180244158,2.45122294,2041.7,2041.0,0.10057449]
[1772180244776,1.22675288,2041.7,2041.1,1.22482974]
[1772180244974,0.002,2041.7,2041.2,0.09964579]
[1772180245577,0.002,2041.5,2041.2,0.09964579]
[1772180246588,0.002,2041.5,2041.0,1.32266963]
[1772180247085,0.002,2041.5,2041.0,2.78466963]
[1772180247580,0.002,2041.5,2041.0,2.78566963]
[1772180248026,0.002,2041.5,2041.0,1.32266963]
[1772180248368,0.002,2041.5,2041.0,2.78666963]
[1772180248662,0.002,2041.5,2041.0,1.32266963]
[1772180248983,0.002,2041.5,2041.0,2.78666963]
[1772180250277,0.002,2041.5,2041.0,2.78866963]
[1772180250897,0.002,2041.5,2041.0,1.32266963]
[1772180251195,0.002,2041.5,2041.0,2.78866963]
[1772180251496,0.002,2041.5,2041.0,1.32266963]
[1772180251699,0.002,2041.5,2041.0,2.78966963]
[1772180252577,1.22475288,2041.6,2041.0,2.78966963]
[1772180252578,0.002,2041.9,2041.4,0.09110155]
[1772180252901,0.002,2042.1,2041.6,0.08910155]
[1772180253089,0.002,2042.1,2041.7,1.31198706]
[1772180253485,0.002,2042.1,2041.7,2.77998706]
[1772180253696,0.002,2042.4,2041.7,2.77998706]
[1772180253697,1.22775288,2042.4,2041.8,0.08751726]
[1772180254575,2.45180304,2042.4,2041.8,0.08751726]
[1772180254780,2.45180304,2042.4,2041.8,1.55651726]
[1772180254981,1.22775288,2042.4,2041.9,1.22434987]
[1772180257582,1.22775288,2042.4,2041.9,1.30568546]
[1772180258790,0.002,2042.2,2041.9,1.30568546]
[1772180259105,1.22775288,2042.4,2041.9,1.30568546]
[1772180259399,1.24594118,2042.4,2041.9,1.22434987]
[1772180260212,1.24594118,2042.4,2041.9,1.29835655]
[1772180261276,1.24594118,2042.4,2041.9,2.77235655]
[1772180263042,0.002,2042.4,2042.0,0.06981082]
[1772180263299,0.002,2042.7,2042.3,0.06981082]
[1772180265280,0.002,2042.7,2042.5,0.06708651]
[1772180267206,0.002,2042.7,2042.5,1.29103131]
[1772180267531,1.25806423,2042.6,2042.2,1.22417001]
[1772180267701,0.69882158,2042.6,2041.8,2.70440983]
[1772180267896,0.69882158,2042.6,2041.8,1.48]
[1772180269307,1.25806423,2042.4,2041.9,1.22434987]
[1772180269899,1.25806423,2042.4,2041.8,2.70436287]
[1772180270099,1.25806423,2042.4,2041.8,1.48]
[1772180270302,1.25806423,2042.4,2041.8,2.70350799]
[1772180271519,1.25806423,2042.3,2041.8,2.70350799]
[1772180272527,1.25806423,2042.3,2041.8,1.4791]
[1772180272726,1.25806423,2042.3,2041.8,2.70349726]
[1772180272923,4.89810722,2042.5,2041.9,30.61854165]
[1772180272924,1.26006423,2042.5,2041.9,30.61854165]
[1772180273129,1.26006423,2042.5,2041.9,0.61854165]
[1772180273426,1.26006423,2042.5,2042.0,3.32583156]
[1772180273726,1.26006423,2042.5,2042.0,2.70728991]
[1772180274102,2.48405603,2042.5,2042.0,2.70728991]
[1772180275403,1.26006423,2042.5,2042.0,2.70728991]
[1772180275914,2.48406778,2042.5,2042.0,2.70728991]
[1772180276232,1.26006423,2042.5,2042.0,2.70728991]
[1772180276933,2.48406512,2042.5,2042.0,2.70728991]
[1772180277229,1.25806423,2042.4,2041.7,1.485]
[1772180277527,1.25806423,2042.2,2041.7,2.70946605]
[1772180278503,1.25806423,2042.4,2041.8,0.61455243]
[1772180279130,1.25806423,2042.4,2041.8,10.7771]
[1772180279700,1.25806423,2042.3,2041.8,12.00147401]
[1772180279904,1.25806423,2042.3,2041.8,1.22437401]
[1772180280549,1.25806423,2042.3,2041.7,1.485]
[1772180280717,1.25806423,2042.3,2041.3,1.22466609]
[1772180280913,1.25806423,2042.3,2041.2,2.71272071]
[1772180281931,1.25806423,2042.1,2041.2,2.71272071]
[1772180282938,1.25806423,2042.1,2041.4,1.18476405]
[1772180283825,1.25806423,2042.1,2041.5,1.22458976]
[1772180284029,2.48230571,2042.1,2041.5,1.22458976]
[1772180284433,1.25806423,2042.1,2041.5,2.40835381]
[1772180284738,2.48231239,2042.1,2041.5,2.40835381]
[1772180286234,1.25806423,2042.0,2041.5,1.22458976]
[1772180286446,1.25806423,2042.0,2041.4,0.001]
[1772180288439,1.25726423,2041.8,2041.4,0.001]
[1772180290558,1.22861183,2041.6,2041.4,0.001]
[1772180292638,1.22861183,2041.5,2041.2,0.001]
[1772180294552,1.22861183,2041.5,2041.4,0.001]
[1772180294720,2.45320159,2041.5,2041.2,0.001]
[1772180295553,1.22861183,2041.5,2041.2,0.001]
[1772180296642,2.45496583,2041.9,2041.2,1.17281219]
[1772180296828,2.45496293,2041.9,2041.2,1.17281219]
[1772180297032,1.23061183,2041.9,2041.2,1.17281219]
[1772180297626,0.002,2041.9,2041.2,1.17281219]
[1772180297826,1.2263544,2041.9,2041.2,1.17281219]
[1772180298223,1.22635578,2041.9,2041.2,1.17281219]
[1772180298420,0.002,2041.9,2041.2,1.17281219]
[1772180299952,1.23061183,2041.9,2041.3,1.22470974]
[1772180300132,1.23061183,2041.9,2041.2,6.07165116]
[1772180300327,1.23061183,2041.9,2041.2,1.22573049]
[1772180302237,1.22861183,2041.7,2041.2,0.001]
[1772180304668,1.22861183,2041.6,2041.2,0.001]
[1772180307398,2.45320159,2041.5,2041.4,0.001]
[1772180310080,1.22861183,2041.5,2041.4,0.001]
[1772180310251,2.45510571,2041.7,2041.4,0.001]
[1772180311696,1.22861183,2041.6,2041.2,0.001]
[1772180312075,1.22458976,2041.5,2041.0,0.001]
[1772180312276,1.22861183,2041.4,2041.0,0.001]
[1772180313094,1.22458976,2041.5,2041.0,1.17281219]
[1772180315794,2.45320159,2041.5,2041.0,1.17281219]
[1772180315993,1.22861183,2041.4,2041.0,0.001]
[1772180316393,2.45332157,2041.3,2041.0,0.001]
[1772180320011,1.23986774,2041.2,2041.0,0.001]
[1772180321287,1.22470974,2041.3,2041.0,0.001]
[1772180321493,1.22668798,2041.4,2041.0,0.001]
[1772180321701,1.24186774,2041.4,2041.0,0.001]
[1772180324904,1.22470974,2041.3,2041.0,0.001]
[1772180325614,1.22470974,2041.3,2041.0,1.25679878]
[1772180325989,1.23986774,2041.2,2041.0,0.001]
[1772180326189,1.22470974,2041.3,2041.0,0.001]
[1772180326397,2.46457748,2041.3,2041.0,0.001]
[1772180327186,1.23986774,2041.2,2041.0,0.001]
[1772180329102,1.22470974,2041.3,2041.0,0.001]
[1772180329409,2.46457748,2041.3,2041.0,0.001]
[1772180331414,1.23986774,2041.2,2041.0,0.001]
[1772180332683,0.002,2041.1,2041.0,0.001]
[1772180334716,1.24186774,2041.3,2041.0,1.25679878]
[1772180334717,0.002,2041.3,2041.0,1.25679878]
[1772180334916,1.24386774,2041.3,2041.0,0.001]
[1772180335115,2.4685838,2041.3,2041.0,0.001]
[1772180335318,1.24386774,2041.3,2041.0,0.001]
[1772180336892,2.4685845,2041.3,2041.0,0.001]
[1772180337105,1.24386774,2041.3,2041.0,0.001]
[1772180337823,1.24186774,2041.2,2041.0,0.001]
[1772180338020,0.002,2041.2,2041.0,0.001]
[1772180338320,0.002,2041.3,2041.0,1.25679878]
[1772180338493,0.004,2041.3,2041.0,1.25679878]
[1772180340432,0.002,2041.3,2041.0,2.48168052]
[1772180340844,1.24386774,2041.3,2041.0,0.001]
[1772180341134,1.23986774,2041.1,2041.0,0.001]
[1772180341505,1.24186774,2041.1,2040.8,0.001]
[1772180343222,2.46670389,2041.1,2040.8,0.001]
[1772180343424,1.24186774,2041.1,2040.8,0.001]
[1772180343619,2.46670678,2041.1,2040.8,0.001]
[1772180343831,1.24186774,2041.1,2040.8,0.001]
[1772180344019,0.002,2041.1,2040.8,1.25679878]
[1772180345142,0.002,2041.1,2040.8,2.4817868]
[1772180345334,1.22671048,2041.3,2040.9,1.25579878]
[1772180345669,0.002,2041.2,2041.0,1.25579878]
[1772180345847,0.002,2041.2,2041.0,1.25679878]
[1772180346149,0.002,2041.1,2041.0,1.25679878]
[1772180347433,0.002,2041.3,2041.2,1.25579878]
[1772180347635,0.002,2041.6,2041.2,1.25579878]
[1772180347939,0.002,2041.5,2041.4,1.25579878]
[1772180350161,0.002,2041.6,2041.5,1.20571772]
[1772180351158,1.1655194,2041.6,2041.0,1.20671772]
[1772180351359,1.1635194,2041.4,2041.0,0.001]
[1772180351528,1.1635194,2041.2,2040.8,0.001]
[1772180352262,1.22482974,2041.1,2040.8,0.001]
[1772180353348,0.001,2041.0,2040.8,0.001]
[1772180355359,0.001,2041.0,2040.8,1.20671772]
[1772180356061,0.001,2041.0,2040.8,0.001]
[1772180356444,1.1635194,2041.2,2040.8,0.001]
[1772180356768,0.001,2041.1,2040.8,1.20671772]
[1772180357061,0.001,2041.3,2040.8,1.20671772]
[1772180357742,0.001,2041.3,2041.0,0.001]
[1772180358234,0.002,2041.1,2041.0,0.001]
[1772180358436,1.1655194,2041.1,2040.8,0.001]
[1772180358740,0.001,2041.0,2040.8,0.001]
[1772180361261,0.001,2041.0,2040.6,1.22610338]
[1772180361262,1.1635194,2041.0,2040.6,0.001]
[1772180361437,1.1635194,2041.0,2040.3,1.20571772]
[1772180362164,1.1635194,2041.0,2040.4,1.20571772]
[1772180362539,1.1635194,2041.0,2040.5,2.43090762]
[1772180362770,1.1635194,2041.0,2039.7,1.22566767]
[1772180362771,1.1635194,2040.7,2039.7,1.22566767]
[1772180363078,2.40347968,2040.6,2039.6,2.43140139]
[1772180363248,1.1635194,2040.5,2039.7,1.20571772]
[1772180364541,2.40347968,2040.6,2039.7,1.20571772]
[1772180364542,1.1635194,2040.3,2039.8,1.22561035]
[1772180364742,2.40347968,2040.6,2039.8,2.43132807]
[1772180364743,2.38875632,2040.5,2039.8,2.43132807]
[1772180364942,2.38875632,2040.5,2039.9,1.20571772]
[1772180365860,1.1635194,2040.4,2039.8,1.22561035]
[1772180366872,2.3888294,2040.3,2039.8,1.22561035]
[1772180369052,1.1635194,2040.2,2039.7,2.4313438]
[1772180369741,1.1635194,2040.4,2039.8,1.20571772]
[1772180370072,1.1635194,2040.4,2039.9,1.22555027]
[1772180370073,2.38877738,2040.4,2039.9,1.22555027]
[1772180370442,2.38877738,2040.4,2040.0,0.001]
[1772180370651,13.62498039,2041.1,2040.0,1.20671772]
[1772180370652,1.1635194,2040.7,2040.0,1.20671772]
[1772180372172,2.38852008,2040.9,2040.2,1.20571772]
[1772180372355,2.38847372,2040.9,2040.2,1.20571772]
[1772180372678,1.1635194,2040.8,2040.2,1.20571772]
[1772180374599,2.38858524,2040.8,2040.2,2.43104432]
[1772180375267,2.38768524,2040.8,2040.2,2.43104432]
[1772180375469,1.1635194,2040.7,2040.2,2.43104432]
[1772180375983,1.1635194,2040.7,2040.0,1.22644314]
[1772180376873,1.1635194,2040.5,2040.0,0.001]
[1772180377978,1.1635194,2040.5,2040.0,1.20671772]
[1772180378791,1.1635194,2040.5,2040.0,2.43216336]
[1772180379163,2.38871393,2040.5,2040.0,2.43216336]
[1772180379903,2.38871393,2040.5,2040.0,1.20671772]
[1772180380069,2.38871393,2040.5,2040.0,2.43220262]
[1772180382591,2.38871393,2040.5,2040.2,0.001]
[1772180382773,2.39071393,2040.5,2040.2,0.001]
[1772180382975,1.23184607,2040.4,2040.0,0.001]
[1772180384288,1.23184607,2040.4,2039.8,0.001]
[1772180385010,2.45715607,2040.3,2039.8,0.001]
[1772180385782,1.23184607,2040.2,2039.8,0.001]
[1772180387003,1.22543012,2040.1,2039.8,0.001]
[1772180388203,1.23184607,2040.0,2039.8,0.001]
[1772180388403,1.23184607,2040.0,2039.7,0.001]
[1772180390373,1.22543012,2040.1,2039.7,0.001]
[1772180391292,2.45727619,2040.1,2039.7,0.001]
[1772180392780,1.22542593,2040.2,2039.7,1.25029829]
[1772180393507,1.23184607,2040.1,2039.7,1.25029829]
[1772180394301,2.45729374,2040.1,2039.7,0.001]
[1772180394481,1.23184607,2040.0,2039.7,0.001]
[1772180395714,1.22544767,2040.1,2039.7,0.001]
[1772180396304,1.22544767,2040.1,2039.9,0.001]
[1772180396616,1.23184607,2040.1,2039.9,0.001]
[1772180396827,1.23384607,2040.1,2039.9,0.001]
[1772180399617,1.23384607,2040.1,2039.5,4.90315056]
[1772180399618,1.23184607,2040.0,2038.2,4.90616094]
[1772180399928,1.23184607,2040.0,2038.4,1.24929829]
[1772180399929,1.23184607,2039.3,2038.4,1.24929829]
[1772180400729,1.23184607,2039.5,2038.6,1.24929829]
[1772180400919,1.23184607,2039.5,2038.8,1.24929829]
[1772180402322,1.22585074,2039.4,2038.8,2.47546798]
[1772180402914,2.45768472,2039.5,2038.8,2.47546798]
[1772180405715,2.45768472,2039.5,2038.9,1.24929829]
[1772180406516,1.23184607,2038.8,2036.8,1.24929829]
[1772180406725,1.23184607,2038.6,2037.4,1.24929829]
[1772180407033,1.23184607,2038.6,2037.6,1.24929829]
[1772180408021,1.23184607,2038.6,2037.2,12.306784]
[1772180408206,1.23184607,2038.6,2037.4,5.821983]
[1772180408595,1.23184607,2038.6,2037.4,5.820283]
[1772180408799,1.23104607,2038.4,2037.5,1.22699386]
[1772180408996,1.23104607,2038.4,2037.5,2.47629215]
[1772180409233,1.23104607,2038.4,2037.6,1.24929829]
[1772180409894,1.23024607,2038.4,2037.6,1.24929829]
[1772180410094,1.23024607,2038.4,2037.1,4.90888064]
[1772180410095,1.23024607,2038.4,2037.2,1.22711431]
[1772180410328,1.23024607,2038.4,2037.5,5.474019]
[1772180410899,1.22609032,2038.2,2037.5,5.474019]
[1772180411124,1.22609032,2038.2,2037.5,5.473219]
[1772180411334,1.22609032,2038.2,2037.5,6.70021068]
[1772180411536,1.22609032,2038.2,2037.5,1.22699168]
[1772180412309,1.22643787,2038.5,2037.6,4.58974056]
[1772180412616,1.22637359,2038.6,2037.9,1.22293344]
[1772180413001,1.22637359,2038.6,2038.0,2.44962627]
[1772180414638,1.22637359,2038.6,2036.6,1.22293344]
[1772180414639,1.22609032,2038.6,2036.6,1.22293344]
[1772180414931,1.22669283,2038.0,2037.4,1.22293344]
[1772180416550,1.22669283,2038.0,2037.2,4.90864325]
[1772180416551,1.22609032,2037.7,2036.6,1.22293344]
[1772180416734,2.45278315,2038.0,2036.7,1.22293344]
[1772180416938,1.22609032,2037.7,2036.8,1.22293344]
[1772180417107,1.22609032,2037.7,2036.6,9.530662]
[1772180417311,1.22609032,2037.7,2036.5,2.45051803]
[1772180418009,1.22609032,2037.2,2036.4,0.1629971]
[1772180418815,1.22609032,2037.2,2036.0,1.22785032]
[1772180418816,1.22609032,2037.2,2036.0,6.13437124]
[1772180419023,1.22609032,2037.0,2036.1,1.22780938]
[1772180419939,1.22723479,2037.1,2036.2,1.22293344]
[1772180420238,1.22609032,2037.0,2036.1,1.22780938]
[1772180420418,1.22609032,2037.0,2036.1,2.45074282]
[1772180421236,1.22735529,2036.9,2036.2,1.22293344]
[1772180421739,2.45324941,2037.3,2036.3,1.22293344]
[1772180422847,1.22715909,2037.3,2036.3,1.22393344]
[1772180423347,1.22609032,2037.4,2036.5,1.22293344]
[1772180425654,1.22711431,2037.3,2036.6,1.22753608]
[1772180426316,1.22711431,2037.3,2036.7,1.22293344]
[1772180426911,1.2290392,2037.5,2036.7,1.22293344]
[1772180427530,1.22609032,2037.4,2036.4,1.22293344]
[1772180427730,1.22711431,2037.3,2036.5,1.22293344]
[1772180429631,1.22903883,2037.5,2036.6,1.22753608]
[1772180429838,1.22903883,2037.5,2036.7,1.22293344]
[1772180430316,0.002,2037.5,2036.7,1.22293344]
[1772180431717,1.22683893,2037.8,2036.8,1.22293344]
[1772180431918,1.22683893,2037.8,2037.0,1.22293344]
[1772180434745,1.22609032,2038.0,2037.0,2.45018004]
[1772180434940,1.22609032,2038.0,2037.1,1.22293344]
[1772180436547,1.22609032,2037.8,2037.1,1.22293344]
[1772180436744,1.22609032,2037.8,2037.1,2.45013975]
[1772180437155,1.22609032,2037.8,2037.2,0.001]
[1772180437367,1.22809032,2037.8,2037.2,0.001]
[1772180438658,1.164704,2037.6,2037.2,0.001]
[1772180439360,1.22687343,2037.7,2037.2,0.001]
[1772180440059,2.3935632,2037.8,2037.2,0.001]
[1772180440267,2.3935632,2037.8,2037.2,1.24148089]
[1772180440556,1.2288592,2037.8,2037.2,1.24148089]
[1772180440770,0.002,2037.8,2037.3,2.4675952]
[1772180441757,0.002,2037.8,2037.4,1.24048089]
[1772180442849,6.13155025,2038.2,2037.6,1.24048089]
[1772180442850,1.22662141,2038.2,2037.6,1.24048089]
[1772180444250,1.22655298,2038.3,2037.6,1.24048089]
[1772180444428,6.13103436,2038.4,2037.6,1.24048089]
[1772180444429,2.4516421,2038.4,2037.6,1.24048089]
[1772180445056,2.4516421,2038.4,2037.7,1.22687343]
[1772180445236,2.4516421,2038.4,2037.8,1.24048089]
[1772180445644,2.45294724,2039.5,2038.5,1.24048089]
[1772180445824,4.36983996,2039.4,2038.7,1.24048089]
[1772180446250,4.36983996,2039.3,2038.7,1.24048089]
[1772180446428,1.22714429,2039.5,2038.7,1.24048089]
[1772180446754,4.36983996,2039.4,2038.9,1.24048089]
[1772180446943,4.36983996,2039.4,2039.0,1.22609122]
[1772180447460,4.36983996,2039.4,2039.0,2.46657211]
[1772180449048,4.36983996,2039.4,2038.9,1.22610548]
[1772180449356,4.36983996,2039.3,2038.9,1.22610548]
[1772180451467,0.002,2039.5,2039.0,1.24048089]
[1772180451770,4.37183996,2039.4,2039.0,1.24048089]
[1772180453376,4.37183996,2039.4,2039.1,1.22603109]
[1772180455452,4.37183996,2039.4,2039.0,6.14461124]
[1772180456676,4.37183996,2039.4,2039.1,1.24048089]
[1772180457176,0.002,2039.5,2039.1,1.24048089]
[1772180457375,0.002,2039.7,2039.1,1.24048089]
[1772180457376,0.002,2039.7,2039.4,1.24048089]
[1772180457739,0.002,2040.0,2039.4,1.24048089]
[1772180458478,0.002,2040.0,2039.5,1.24048089]
[1772180459462,0.002,2040.0,2039.6,2.46621142]
[1772180459862,0.002,2040.0,2039.7,1.24048089]
[1772180460578,0.002,2040.0,2039.7,3.65120006]
[1772180460787,0.002,2040.0,2039.7,1.24048089]
[1772180461450,0.002,2040.0,2039.9,1.24048089]
[1772180461744,0.002,2040.0,2038.9,1.24048089]
[1772180461745,1.22714429,2040.0,2038.9,1.24048089]
[1772180461961,1.22714429,2040.0,2039.0,4.90428866]
[1772180462192,1.22714429,2040.0,2039.0,6.14476955]
[1772180463492,1.22555027,2039.9,2039.0,6.14476955]
[1772180463791,2.45069456,2039.9,2039.0,6.14476955]
[1772180464368,1.22750057,2040.0,2039.1,1.24048089]
[1772180464771,2.45264486,2040.0,2039.1,1.24048089]
[1772180464970,1.22514429,2039.9,2039.1,1.24048089]
[1772180465606,2.45275992,2039.8,2039.2,1.22597096]
[1772180466601,1.22514429,2039.7,2039.1,2.4664722]
[1772180467997,2.45083052,2039.7,2039.0,1.22606673]
[1772180468308,1.22514429,2039.6,2039.0,1.22606673]
[1772180468883,1.22514429,2039.6,2038.9,2.46760284]
[1772180469081,2.45279615,2039.8,2039.0,1.24048089]
[1772180470103,1.12922741,2039.7,2039.1,1.22603109]
[1772180471679,1.12922741,2039.7,2039.1,2.36874186]
[1772180473204,1.12922741,2039.7,2039.2,1.14271077]
[1772180474012,1.22761191,2039.8,2039.2,1.14271077]
[1772180474506,1.12922741,2039.7,2039.0,1.14271077]
[1772180475838,1.12922741,2039.5,2038.9,1.22710655]
[1772180477424,0.002,2039.8,2039.0,1.14271077]
[1772180477601,1.22761233,2039.8,2039.2,1.22597096]
[1772180477923,1.12922741,2039.7,2039.1,2.3686975]
[1772180478493,1.12922741,2039.7,2039.1,1.22598673]
[1772180478697,1.22761233,2039.8,2039.0,1.22605684]
[1772180479020,0.002,2040.7,2040.0,1.14271077]
[1772180479198,0.002,2040.7,2040.3,1.14271077]
[1772180479599,0.002,2040.7,2040.4,2.36796072]
[1772180480335,0.002,2040.7,2040.5,1.14271077]
[1772180481808,0.002,2040.7,2040.6,1.22512986]
[1772180482715,0.002,2040.7,2040.5,2.36785303]
[1772180484631,0.002,2041.0,2040.6,1.14271077]
[1772180484819,0.002,2041.0,2040.5,2.36785303]
[1772180485021,0.002,2041.0,2040.5,1.22514226]
[1772180485517,0.002,2041.0,2040.5,2.36785303]
[1772180485701,0.002,2041.0,2040.6,1.14271077]
[1772180485900,0.002,2041.1,2040.7,2.36778059]